lending/lending_fUSD_20240509
["ID","MTS","AMOUNT","RATE_DAILY","PERIOD"]
[326746201,1715297465655,-159.80777229,0.00030644,2]
[326746202,1715297465664,-150.0,0.00030646,2]
[326746203,1715297465674,-150.0,0.00030657,2]
[326746204,1715297465684,-150.0,0.00030657,2]
[326746205,1715297465693,-150.0,0.00030659,2]
[326746206,1715297465703,-150.0,0.00030668,2]
[326746207,1715297465712,-4435.31,0.0003068,4]
[326746208,1715297465722,-4435.31,0.0003068,4]
[326746209,1715297465731,-4435.31,0.0003068,4]
[326746210,1715297465740,-4435.31,0.0003068,4]
[326746211,1715297465749,-4435.31,0.0003068,4]
[326746212,1715297465758,-4435.31,0.0003068,4]
[326746213,1715297465769,-4435.31,0.0003068,4]
[326746214,1715297465778,-4435.31,0.0003068,4]
[326746215,1715297465787,-4435.31,0.0003068,4]
[326746216,1715297465797,-4435.31,0.0003068,4]
[326746217,1715297465807,-4435.31,0.0003068,4]
[326746218,1715297465816,-4435.31,0.0003068,4]
[326746219,1715297465826,-4435.31,0.0003068,4]
[326746220,1715297465835,-4435.34725894,0.0003068,4]
[326746221,1715297465844,-151.0,0.00030681,7]
[326746222,1715297465853,-151.0,0.00030681,7]
[326746223,1715297465862,-301.774638,0.00030681,7]
[326746224,1715297465872,-151.0,0.00030681,7]
[326746225,1715297465881,-151.0,0.00030681,7]
[326746226,1715297465891,-157.932236,0.00030681,7]
[326746227,1715297465900,-157.932236,0.00030681,7]
[326746228,1715297465910,-151.0,0.00030681,7]
[326746229,1715297465919,-151.0,0.00030681,7]
[326746230,1715297465928,-151.0,0.00030681,7]
[326746231,1715297465938,-151.0,0.00030681,7]
[326746232,1715297465947,-239.7197,0.00030681,7]
[326746233,1715297465958,-151.0,0.00030681,7]
[326746234,1715297465967,-268.806236,0.00030681,7]
[326746235,1715297465976,-268.806236,0.00030681,7]
[326746236,1715297465985,-151.0,0.00030681,7]
[326746237,1715297465994,-235.171682,0.00030681,7]
[326746238,1715297466003,-235.171682,0.00030681,7]
[326746239,1715297466014,-151.0,0.00030681,7]
[326746240,1715297466024,-151.0,0.00030681,7]
[326746241,1715297466037,-151.0,0.00030681,7]
[326746242,1715297466045,-176.388595,0.00030681,7]
[326746243,1715297466054,-151.0,0.00030681,7]
[326746244,1715297466063,-151.0,0.00030681,7]
[326746245,1715297466072,-151.0,0.00030681,7]
[326746246,1715297466082,-529.455136,0.00030681,7]
[326746247,1715297466091,-529.455136,0.00030681,7]
[326746248,1715297466100,-205.624906,0.00030681,7]
[326746249,1715297466109,-173.213968,0.00030681,7]
[326746250,1715297466118,-173.213968,0.00030681,7]
[326746251,1715297466128,-151.0,0.00030681,7]
[326746252,1715297466137,-151.0,0.00030681,7]
[326746253,1715297466146,-500.0,0.00030684,6]
[326746254,1715297466155,-716.53,0.00030684,6]
[326746255,1715297466165,-500.0,0.00030684,6]
[326746256,1715297466174,-500.0,0.00030684,6]
[326746257,1715297466183,-789.71,0.00030684,6]
[326746258,1715297466193,-500.0,0.00030684,2]
[326746259,1715297466203,-500.0,0.00030684,6]
[326746260,1715297466212,-994.1,0.00030684,6]
[326746261,1715297466221,-500.0,0.00030684,6]
[326746262,1715297466231,-500.0,0.00030684,6]
[326746263,1715297466240,-804.46,0.00030684,6]
[326746264,1715297466249,-500.0,0.00030684,6]
[326746265,1715297466259,-500.0,0.00030684,6]
[326746266,1715297466270,-580.48,0.00030684,6]
[326746267,1715297466278,-500.0,0.00030684,6]
[326746268,1715297466287,-500.0,0.00030684,6]
[326746269,1715297466296,-500.0,0.00030684,6]
[326746270,1715297466305,-766.08,0.00030684,6]
[326746271,1715297466314,-663.83,0.00030684,6]
[326746272,1715297466324,-500.0,0.00030684,6]
[326746273,1715297466332,-501.51,0.00030684,6]
[326746274,1715297466342,-500.0,0.00030684,6]
[326746275,1715297466350,-211.18222165,0.00030684,6]
[326746276,1715297466360,-500.0,0.00030684,6]
[326746277,1715297466369,-500.75,0.00030684,6]
[326746278,1715297466378,-500.0,0.00030684,6]
[326746279,1715297466388,-500.0,0.00030684,6]
[326746280,1715297466396,-500.0,0.00030684,6]
[326746281,1715297466405,-500.0,0.00030684,6]
[326746282,1715297466415,-500.0,0.00030684,6]
[326746283,1715297466424,-576.24,0.00030684,6]
[326746284,1715297466433,-662.83,0.00030684,6]
[326746285,1715297466442,-889.58,0.00030684,6]
[326746286,1715297466450,-500.0,0.00030684,6]
[326746287,1715297466460,-500.0,0.00030684,6]
[326746288,1715297466469,-500.0,0.00030684,6]
[326746289,1715297466478,-500.0,0.00030684,6]
[326746290,1715297466487,-842.01,0.00030684,6]
[326746291,1715297466496,-500.0,0.00030684,6]
[326746292,1715297466505,-978.16,0.00030684,6]
[326746293,1715297466516,-898.79,0.00030684,6]
[326746294,1715297466526,-577.33,0.00030684,6]
[326746295,1715297466534,-500.0,0.00030684,6]
[326746296,1715297466544,-734.77,0.00030684,6]
[326746297,1715297466553,-500.0,0.00030684,6]
[326746298,1715297466564,-500.0,0.00030684,6]
[326746299,1715297466574,-500.0,0.00030684,6]
[326746300,1715297466582,-562.56,0.00030684,6]
[326746301,1715297466592,-790.18,0.00030684,6]
[326746302,1715297466601,-500.0,0.00030684,6]
[326746303,1715297466610,-500.0,0.00030684,6]
[326746304,1715297466620,-500.0,0.00030684,6]
[326746305,1715297466629,-600.13,0.00030684,6]
[326746306,1715297466638,-599.5648905,0.00030684,6]
[326746307,1715297466647,-500.0,0.00030684,6]
[326746308,1715297466656,-626.43,0.00030684,6]
[326746309,1715297466665,-887.81,0.00030684,6]
[326746310,1715297466674,-500.0,0.00030684,6]
[326746311,1715297466684,-227.76224168,0.00030684,6]
[326746312,1715297466693,-881.06,0.00030684,6]
[326746313,1715297466702,-964.4,0.00030684,6]
[326746314,1715297466711,-714.06,0.00030684,6]
[326746315,1715297466720,-500.0,0.00030684,6]
[326746316,1715297466729,-500.0,0.00030684,6]
[326746317,1715297466739,-536.04,0.00030684,6]
[326746318,1715297466748,-820.56,0.00030684,6]
[326746319,1715297466758,-500.0,0.00030684,6]
[326746320,1715297466769,-500.0,0.00030684,6]
[326746321,1715297466778,-500.0,0.00030684,6]
[326746322,1715297466787,-596.95,0.00030684,6]
[326746323,1715297466796,-500.0,0.00030684,6]
[326746324,1715297466805,-851.48,0.00030684,6]
[326746325,1715297466814,-623.06,0.00030684,6]
[326746326,1715297466823,-770.98,0.00030684,6]
[326746327,1715297466832,-500.0,0.00030684,6]
[326746328,1715297466840,-500.0,0.00030684,6]
[326746329,1715297466849,-500.0,0.00030684,6]
[326746330,1715297466858,-500.0,0.00030684,6]
[326746331,1715297466867,-500.0,0.00030684,6]
[326746332,1715297466876,-500.0,0.00030684,6]
[326746333,1715297466885,-1500.0,0.00030684,6]
[326746334,1715297466896,-500.0,0.00030684,6]
[326746335,1715297466906,-500.0,0.00030684,6]
[326746336,1715297466915,-500.0,0.00030684,6]
[326746337,1715297466924,-500.0,0.00030684,6]
[326746338,1715297466933,-686.45,0.00030684,6]
[326746339,1715297466942,-500.0,0.00030684,6]
[326746340,1715297466952,-500.0,0.00030684,6]
[326746341,1715297466961,-516.09,0.00030684,6]
[326746342,1715297466970,-500.0,0.00030684,6]
[326746343,1715297466979,-500.0,0.00030684,6]
[326746344,1715297466988,-935.28,0.00030684,6]
[326746345,1715297466998,-641.53378518,0.00030684,6]
[326746346,1715297467008,-500.0,0.00030684,6]
[326746347,1715297467019,-1078.4,0.00030684,6]
[326746348,1715297467033,-500.0,0.00030684,6]
[326746349,1715297467042,-500.0,0.00030684,6]
[326746350,1715297467052,-763.25,0.00030684,6]
[326746351,1715297467062,-500.0,0.00030684,6]
[326746352,1715297467072,-584.37,0.00030684,6]
[326746353,1715297467082,-1260.64,0.00030684,6]
[326746354,1715297467091,-500.0,0.00030684,6]
[326746355,1715297467101,-906.64,0.00030684,6]
[326746356,1715297467115,-500.0,0.00030684,6]
[326746357,1715297467124,-711.25,0.00030684,6]
[326746358,1715297467134,-500.0,0.00030684,6]
[326746359,1715297467143,-500.0,0.00030684,6]
[326746360,1715297467152,-500.0,0.00030684,6]
[326746361,1715297467162,-500.0,0.00030684,6]
[326746362,1715297467171,-577.1009522,0.00030684,6]
[326746363,1715297467182,-500.0,0.00030684,6]
[326746364,1715297467191,-500.0,0.00030684,6]
[326746365,1715297467203,-500.0,0.00030684,6]
[326746366,1715297467212,-887.86,0.00030684,6]
[326746367,1715297467221,-500.0,0.00030684,6]
[326746368,1715297467232,-500.0,0.00030684,6]
[326746369,1715297467241,-500.0,0.00030684,6]
[326746370,1715297467252,-903.22,0.00030684,6]
[326746371,1715297467262,-500.0,0.00030684,6]
[326746372,1715297467272,-500.0,0.00030684,6]
[326746373,1715297467281,-853.61,0.00030684,6]
[326746374,1715297467291,-1323.39,0.00030684,6]
[326746375,1715297467300,-500.0,0.00030684,6]
[326746376,1715297467309,-500.0,0.00030684,6]
[326746377,1715297467320,-500.0,0.00030684,6]
[326746378,1715297467331,-618.86,0.00030684,6]
[326746379,1715297467340,-977.85,0.00030684,6]
[326746380,1715297467350,-500.0,0.00030684,6]
[326746381,1715297467360,-500.0,0.00030684,6]
[326746382,1715297467372,-500.0,0.00030684,6]
[326746383,1715297467381,-500.0,0.00030684,6]
[326746384,1715297467391,-500.0,0.00030684,6]
[326746385,1715297467400,-500.0,0.00030684,6]
[326746386,1715297467410,-960.09,0.00030684,6]
[326746387,1715297467419,-500.0,0.00030684,6]
[326746388,1715297467428,-150.0,0.00030684,6]
[326746389,1715297467438,-653.33,0.00030684,6]
[326746390,1715297467447,-584.96,0.00030684,6]
[326746391,1715297467456,-1075.64,0.00030684,6]
[326746392,1715297467466,-500.0,0.00030684,6]
[326746393,1715297467476,-808.68,0.00030684,6]
[326746394,1715297467485,-636.82,0.00030684,6]
[326746395,1715297467494,-536.32,0.00030684,6]
[326746396,1715297467504,-500.0,0.00030684,6]
[326746397,1715297467514,-507.63946205,0.00030684,6]
[326746398,1715297467524,-680.22,0.00030684,6]
[326746399,1715297467534,-500.0,0.00030684,6]
[326746400,1715297467544,-527.84,0.00030684,6]
[326746401,1715297467555,-507.4601169,0.00030684,6]
[326746402,1715297467564,-500.0,0.00030684,6]
[326746403,1715297467573,-710.23,0.00030684,6]
[326746404,1715297467583,-500.0,0.00030684,6]
[326746405,1715297467592,-250.26403689,0.00030684,6]
[326746406,1715297467602,-500.0,0.00030684,6]
[326746407,1715297467612,-500.0,0.00030684,6]
[326746408,1715297467621,-500.0,0.00030684,6]
[326746409,1715297467630,-500.0,0.00030684,6]
[326746410,1715297467640,-500.0,0.00030684,6]
[326746411,1715297467649,-1011.61,0.00030684,6]
[326746412,1715297467659,-644.49,0.00030684,6]
[326746413,1715297467668,-500.0,0.00030684,6]
[326746414,1715297467678,-1818.74,0.00030684,6]
[326746415,1715297467688,-500.0,0.00030684,6]
[326746416,1715297467698,-500.0,0.00030684,6]
[326746417,1715297467708,-500.0,0.00030684,6]
[326746418,1715297467719,-500.0,0.00030684,6]
[326746419,1715297467728,-824.76,0.00030684,6]
[326746420,1715297467738,-1122.54,0.00030684,6]
[326746421,1715297467748,-515.33,0.00030684,6]
[326746422,1715297467758,-500.0,0.00030684,6]
[326746423,1715297467769,-581.67,0.00030684,6]
[326746424,1715297467779,-878.31,0.00030684,6]
[326746425,1715297467788,-744.62,0.00030684,6]
[326746426,1715297467798,-500.0,0.00030684,6]
[326746427,1715297467807,-500.0,0.00030684,6]
[326746428,1715297467817,-500.0,0.00030684,6]
[326746429,1715297467826,-706.76,0.00030684,6]
[326746430,1715297467836,-500.0,0.00030684,6]
[326746431,1715297467845,-500.0,0.00030684,6]
[326746432,1715297467855,-1110.14,0.00030684,6]
[326746433,1715297467864,-500.0,0.00030684,6]
[326746434,1715297467874,-259.74,0.00030684,6]
[326746435,1715297467883,-1787.68,0.00030684,6]
[326746436,1715297467892,-500.0,0.00030684,6]
[326746437,1715297467901,-500.0,0.00030684,6]
[326746438,1715297467910,-500.0,0.00030684,6]
[326746439,1715297467919,-500.0,0.00030684,6]
[326746440,1715297467930,-500.0,0.00030684,6]
[326746441,1715297467939,-2155.46,0.00030684,6]
[326746442,1715297467949,-500.0,0.00030684,6]
[326746443,1715297467958,-500.0,0.00030684,6]
[326746444,1715297467967,-500.0,0.00030684,6]
[326746445,1715297467976,-500.0,0.00030684,6]
[326746446,1715297467986,-2057.96,0.00030684,6]
[326746447,1715297467996,-500.0,0.00030684,6]
[326746448,1715297468005,-1235.53,0.00030684,6]
[326746449,1715297468016,-500.0,0.00030684,6]
[326746450,1715297468026,-500.0,0.00030684,6]
[326746451,1715297468039,-151.0,0.00030684,7]
[326746452,1715297468049,-500.0,0.00030684,6]
[326746453,1715297468058,-500.0,0.00030684,6]
[326746454,1715297468067,-508.33,0.00030684,6]
[326746455,1715297468077,-578.43,0.00030684,6]
[326746456,1715297468087,-500.0,0.00030684,6]
[326746457,1715297468096,-500.0,0.00030684,6]
[326746458,1715297468106,-500.0,0.00030684,6]
[326746459,1715297468115,-500.0,0.00030684,6]
[326746460,1715297468124,-500.0,0.00030684,6]
[326746461,1715297468134,-500.0,0.00030684,6]
[326746462,1715297468143,-500.0,0.00030684,6]
[326746463,1715297468152,-500.0,0.00030684,6]
[326746464,1715297468161,-500.0,0.00030684,6]
[326746465,1715297468171,-519.17526562,0.00030684,6]
[326746466,1715297468180,-2218.39,0.00030684,6]
[326746467,1715297468189,-1446.56,0.00030684,6]
[326746468,1715297468198,-500.0,0.00030684,6]
[326746469,1715297468207,-500.0,0.00030684,6]
[326746470,1715297468217,-500.0,0.00030684,6]
[326746471,1715297468226,-500.0,0.00030684,6]
[326746472,1715297468235,-702.6,0.00030684,6]
[326746473,1715297468244,-500.0,0.00030684,6]
[326746474,1715297468253,-718.96,0.00030684,6]
[326746475,1715297468263,-500.0,0.00030684,6]
[326746476,1715297468274,-2337.83,0.00030684,6]
[326746477,1715297468284,-500.0,0.00030684,6]
[326746478,1715297468294,-500.0,0.00030684,6]
[326746479,1715297468304,-765.35,0.00030684,6]
[326746480,1715297468313,-500.0,0.00030684,6]
[326746481,1715297468323,-1265.93,0.00030684,6]
[326746482,1715297468333,-502.9,0.00030684,6]
[326746483,1715297468343,-516.10581031,0.00030684,6]
[326746484,1715297468352,-500.0,0.00030684,6]
[326746485,1715297468363,-888.22,0.00030684,6]
[326746486,1715297468373,-1538.92,0.00030684,6]
[326746487,1715297468382,-500.0,0.00030684,6]
[326746488,1715297468392,-1668.75,0.00030684,6]
[326746489,1715297468401,-500.0,0.00030684,6]
[326746490,1715297468411,-1116.57,0.00030684,6]
[326746491,1715297468421,-842.18,0.00030684,6]
[326746492,1715297468430,-1250.4,0.00030684,6]
[326746493,1715297468440,-1654.84,0.00030684,6]
[326746494,1715297468450,-500.0,0.00030684,6]
[326746495,1715297468459,-1344.41,0.00030684,6]
[326746496,1715297468468,-500.0,0.00030684,6]
[326746497,1715297468478,-522.4027515,0.00030684,6]
[326746498,1715297468488,-500.0,0.00030684,6]
[326746499,1715297468500,-1915.45,0.00030684,6]
[326746500,1715297468509,-683.17,0.00030684,6]
[326746501,1715297468519,-641.12,0.00030684,6]
[326746502,1715297468528,-1857.39,0.00030684,6]
[326746503,1715297468538,-687.97,0.00030684,6]
[326746504,1715297468547,-1314.13,0.00030684,6]
[326746505,1715297468557,-151.0,0.00030684,7]
[326746506,1715297468567,-961.48,0.00030684,6]
[326746507,1715297468577,-2774.58,0.00030684,6]
[326746508,1715297468587,-500.0,0.00030684,6]
[326746509,1715297468597,-500.0,0.00030684,6]
[326746510,1715297468606,-500.0,0.00030684,6]
[326746511,1715297468615,-1270.75,0.00030684,6]
[326746512,1715297468626,-3000.0,0.00030684,6]
[326746513,1715297468635,-705.0,0.00030684,6]
[326746514,1715297468645,-636.76,0.00030684,6]
[326746515,1715297468655,-1154.34,0.00030684,6]
[326746516,1715297468664,-2507.23,0.00030684,6]
[326746517,1715297468674,-756.92,0.00030684,6]
[326746518,1715297468684,-2178.56,0.00030684,6]
[326746519,1715297468694,-925.37,0.00030684,6]
[326746520,1715297468704,-500.0,0.00030684,6]
[326746521,1715297468714,-500.0,0.00030684,6]
[326746522,1715297468724,-151.0,0.00030684,7]
[326746523,1715297468734,-500.0,0.00030684,6]
[326746524,1715297468743,-500.0,0.00030684,6]
[326746525,1715297468753,-500.0,0.00030684,6]
[326746526,1715297468763,-624.36,0.00030684,6]
[326746527,1715297468774,-500.0,0.00030684,6]
[326746528,1715297468783,-151.0,0.00030684,7]
[326746529,1715297468794,-1275.69,0.00030684,6]
[326746530,1715297468803,-2358.15,0.00030684,6]
[326746531,1715297468813,-646.74,0.00030684,6]
[326746532,1715297468823,-1187.26,0.00030684,6]
[326746533,1715297468833,-565.47,0.00030684,6]
[326746534,1715297468844,-1634.05,0.00030684,6]
[326746535,1715297468855,-3322.37,0.00030684,6]
[326746536,1715297468865,-630.81,0.00030684,6]
[326746537,1715297468874,-507.76,0.00030684,6]
[326746538,1715297468884,-2028.74,0.00030684,6]
[326746539,1715297468895,-504.22576868,0.00030684,6]
[326746540,1715297468905,-500.0,0.00030684,6]
[326746541,1715297468914,-1292.29,0.00030684,6]
[326746542,1715297468923,-157.932236,0.00030684,7]
[326746543,1715297468933,-2622.15,0.00030684,6]
[326746544,1715297468942,-500.0,0.00030684,6]
[326746545,1715297468952,-500.0,0.00030684,6]
[326746546,1715297468962,-2351.92,0.00030684,6]
[326746547,1715297468971,-1625.02,0.00030684,6]
[326746548,1715297468981,-157.932236,0.00030684,7]
[326746549,1715297469219,-500.0,0.00030684,6]
[326746550,1715297469229,-500.0,0.00030684,6]
[326746551,1715297469239,-500.0,0.00030684,6]
[326746552,1715297469249,-151.0,0.00030684,7]
[326746553,1715297469258,-1675.77,0.00030684,6]
[326746554,1715297469267,-500.0,0.00030684,6]
[326746555,1715297469277,-1217.3,0.00030684,6]
[326746556,1715297469286,-151.0,0.00030684,7]
[326746557,1715297469296,-807.83,0.00030684,6]
[326746558,1715297469305,-500.0,0.00030684,6]
[326746559,1715297469314,-500.0,0.00030684,6]
[326746560,1715297469324,-2861.03,0.00030684,6]
[326746561,1715297469333,-500.0,0.00030684,6]
[326746562,1715297469343,-214.54171426,0.00030684,6]
[326746563,1715297469352,-1072.38,0.00030684,6]
[326746564,1715297469361,-500.0,0.00030684,6]
[326746565,1715297469370,-737.54,0.00030684,6]
[326746566,1715297469380,-500.0,0.00030684,6]
[326746567,1715297469390,-635.16,0.00030684,6]
[326746568,1715297469399,-500.0,0.00030684,6]
[326746569,1715297469408,-1723.47,0.00030684,6]
[326746570,1715297469418,-500.0,0.00030684,6]
[326746571,1715297469427,-710.59,0.00030684,6]
[326746572,1715297469436,-500.0,0.00030684,6]
[326746573,1715297469445,-500.0,0.00030684,6]
[326746574,1715297469455,-2265.73,0.00030684,6]
[326746575,1715297469464,-2107.35,0.00030684,6]
[326746576,1715297469474,-500.0,0.00030684,6]
[326746577,1715297469483,-1544.27,0.00030684,6]
[326746578,1715297469493,-500.0,0.00030684,6]
[326746579,1715297469504,-500.0,0.00030684,6]
[326746580,1715297469514,-3520.34,0.00030684,6]
[326746581,1715297469524,-1431.08,0.00030684,6]
[326746582,1715297469534,-500.0,0.00030684,2]
[326746583,1715297469543,-500.0,0.00030684,6]
[326746584,1715297469553,-500.0,0.00030684,6]
[326746585,1715297469563,-515.12,0.00030684,6]
[326746586,1715297469573,-1386.16,0.00030684,6]
[326746587,1715297469582,-500.0,0.00030684,6]
[326746588,1715297469592,-1371.64,0.00030684,6]
[326746589,1715297469601,-539.80352195,0.00030684,6]
[326746590,1715297469610,-833.61,0.00030684,6]
[326746591,1715297469620,-1135.42,0.00030684,6]
[326746592,1715297469630,-500.0,0.00030684,6]
[326746593,1715297469639,-697.35,0.00030684,6]
[326746594,1715297469648,-1148.26,0.00030684,6]
[326746595,1715297469657,-570.78,0.00030684,6]
[326746596,1715297469667,-500.0,0.00030684,6]
[326746597,1715297469676,-1003.43,0.00030684,6]
[326746598,1715297469685,-500.0,0.00030684,6]
[326746599,1715297469695,-1271.35,0.00030684,6]
[326746600,1715297469705,-1107.12,0.00030684,6]
[326746601,1715297469715,-1705.53,0.00030684,6]
[326746602,1715297469725,-519.12,0.00030684,6]
[326746603,1715297469734,-500.0,0.00030684,6]
[326746604,1715297469744,-500.0,0.00030684,6]
[326746605,1715297469753,-500.0,0.00030684,6]
[326746606,1715297469763,-500.0,0.00030684,6]
[326746607,1715297469774,-500.0,0.00030684,6]
[326746608,1715297469784,-500.0,0.00030684,6]
[326746609,1715297469794,-500.0,0.00030684,6]
[326746610,1715297469803,-500.0,0.00030684,6]
[326746611,1715297469812,-3395.6,0.00030684,6]
[326746612,1715297469822,-500.0,0.00030684,6]
[326746613,1715297469831,-517.44228363,0.00030684,6]
[326746614,1715297469840,-500.0,0.00030684,6]
[326746615,1715297469850,-887.35,0.00030684,6]
[326746616,1715297469859,-500.0,0.00030684,6]
[326746617,1715297469869,-500.0,0.00030684,6]
[326746618,1715297469878,-2406.31,0.00030684,6]
[326746619,1715297469887,-1956.6,0.00030684,6]
[326746620,1715297469896,-500.0,0.00030684,6]
[326746621,1715297469906,-500.0,0.00030684,6]
[326746622,1715297469915,-151.0,0.00030684,7]
[326746623,1715297469924,-2873.61,0.00030684,6]
[326746624,1715297469933,-500.0,0.00030684,6]
[326746625,1715297469943,-1893.29,0.00030684,6]
[326746626,1715297469952,-1000.0,0.00030684,6]
[326746627,1715297469962,-2277.69,0.00030684,6]
[326746628,1715297469973,-882.28,0.00030684,6]
[326746629,1715297469982,-500.0,0.00030684,6]
[326746630,1715297469992,-500.0,0.00030684,6]
[326746631,1715297470001,-935.53,0.00030684,6]
[326746632,1715297470011,-522.83,0.00030684,6]
[326746633,1715297470021,-500.0,0.00030684,6]
[326746634,1715297470032,-501.49622508,0.00030684,6]
[326746635,1715297470042,-500.0,0.00030684,6]
[326746636,1715297470051,-1278.41,0.00030684,6]
[326746637,1715297470060,-825.67,0.00030684,6]
[326746638,1715297470069,-500.0,0.00030684,6]
[326746639,1715297470078,-500.0,0.00030684,6]
[326746640,1715297470088,-1430.53,0.00030684,6]
[326746641,1715297470097,-1823.72,0.00030684,6]
[326746642,1715297470107,-668.05,0.00030684,6]
[326746643,1715297470116,-500.0,0.00030684,6]
[326746644,1715297470126,-500.0,0.00030684,6]
[326746645,1715297470136,-526.01443424,0.00030684,6]
[326746646,1715297470145,-1142.6,0.00030684,6]
[326746647,1715297470154,-1726.72,0.00030684,6]
[326746648,1715297470164,-1109.58,0.00030684,6]
[326746649,1715297470175,-1014.73,0.00030684,6]
[326746650,1715297470184,-500.0,0.00030684,6]
[326746651,1715297470194,-1440.2,0.00030684,6]
[326746652,1715297470203,-650.7,0.00030684,6]
[326746653,1715297470214,-500.0,0.00030684,6]
[326746654,1715297470223,-1201.47,0.00030684,6]
[326746655,1715297470232,-228.791021,0.00030684,7]
[326746656,1715297470242,-500.0,0.00030684,6]
[326746657,1715297470251,-1085.28,0.00030684,6]
[326746658,1715297470260,-1198.9,0.00030684,6]
[326746659,1715297470270,-890.62,0.00030684,6]
[326746660,1715297470280,-500.0,0.00030684,6]
[326746661,1715297470289,-500.0,0.00030684,6]
[326746662,1715297470298,-500.0,0.00030684,6]
[326746663,1715297470308,-500.0,0.00030684,6]
[326746664,1715297470317,-500.0,0.00030684,6]
[326746665,1715297470326,-500.0,0.00030684,6]
[326746666,1715297470336,-500.0,0.00030684,6]
[326746667,1715297470345,-950.51,0.00030684,6]
[326746668,1715297470355,-831.05,0.00030684,6]
[326746669,1715297470364,-500.0,0.00030684,6]
[326746670,1715297470374,-150.0,0.00030684,2]
[326746671,1715297470383,-500.0,0.00030684,6]
[326746672,1715297470393,-500.0,0.00030684,6]
[326746673,1715297470402,-1027.3,0.00030684,6]
[326746674,1715297470412,-500.0,0.00030684,6]
[326746675,1715297470422,-500.0,0.00030684,6]
[326746676,1715297470432,-500.0,0.00030684,6]
[326746677,1715297470442,-500.0,0.00030684,6]
[326746678,1715297470451,-449.22973573,0.00030684,6]
[326746679,1715297470461,-1179.31,0.00030684,6]
[326746680,1715297470471,-500.0,0.00030684,6]
[326746681,1715297470480,-151.0,0.00030684,7]
[326746682,1715297470490,-836.3,0.00030684,6]
[326746683,1715297470500,-500.0,0.00030684,6]
[326746684,1715297470509,-1418.73,0.00030684,6]
[326746685,1715297470519,-861.26,0.00030684,6]
[326746686,1715297470529,-1576.12,0.00030684,6]
[326746687,1715297470539,-500.0,0.00030684,6]
[326746688,1715297470548,-500.0,0.00030684,6]
[326746689,1715297470557,-500.0,0.00030684,6]
[326746690,1715297470567,-500.0,0.00030684,6]
[326746691,1715297470577,-500.0,0.00030684,6]
[326746692,1715297470587,-500.0,0.00030684,6]
[326746693,1715297470596,-500.0,0.00030684,6]
[326746694,1715297470605,-1503.77,0.00030684,6]
[326746695,1715297470615,-1281.56,0.00030684,6]
[326746696,1715297470624,-1467.72,0.00030684,6]
[326746697,1715297470634,-500.0,0.00030684,6]
[326746698,1715297470644,-1578.77,0.00030684,6]
[326746699,1715297470653,-500.0,0.00030684,6]
[326746700,1715297470663,-500.0,0.00030684,6]